[Event "*** Titled Tuesday Blitz"]
[Site "Chess.com"]
[Date "2021.03.02"]
[Round "1"]
[White "Witik"]
[Black "imdarealist"]
[Result "1-0"]
[WhiteElo "2708"]
[BlackElo "2378"]
[TimeControl "180+1"]
[EndTime "10:08:00 PST"]
[Termination "Witik won by resignation"]

1. e4 {[%clk 0:02:56]} 1... e5 {[%clk 0:02:58.5]} 2. Nf3 {[%clk 0:02:55.6]} 2...
Nf6 {[%clk 0:02:57.9]} 3. Nc3 {[%clk 0:02:55.1]} 3... Bb4 {[%clk 0:02:56.9]} 4.
Nxe5 {[%clk 0:02:51.9]} 4... O-O {[%clk 0:02:56.8]} 5. Nd3 {[%clk 0:02:51.5]}
5... Bxc3 {[%clk 0:02:55.8]} 6. dxc3 {[%clk 0:02:51.6]} 6... Nxe4 {[%clk
0:02:54]} 7. Be2 {[%clk 0:02:51.4]} 7... Re8 {[%clk 0:02:53.6]} 8. O-O {[%clk
0:02:51.3]} 8... d6 {[%clk 0:02:53.1]} 9. f3 {[%clk 0:02:44.6]} 9... Nc5 {[%clk
0:02:46.7]} 10. Bf4 {[%clk 0:02:28.2]} 10... Nbd7 {[%clk 0:02:35]} 11. Qd2
{[%clk 0:02:24.3]} 11... Nxd3 {[%clk 0:02:19.4]} 12. cxd3 {[%clk 0:02:19.5]}
12... Nc5 {[%clk 0:02:10.4]} 13. Rfe1 {[%clk 0:02:16.6]} 13... Ne6 {[%clk
0:02:06.5]} 14. Bg3 {[%clk 0:02:14]} 14... b6 {[%clk 0:02:02.9]} 15. d4 {[%clk
0:02:12.7]} 15... Bb7 {[%clk 0:02:03]} 16. Bd3 {[%clk 0:02:05.9]} 16... Qf6
{[%clk 0:01:49.8]} 17. Re3 {[%clk 0:01:57.8]} 17... Nf8 {[%clk 0:01:30.2]} 18.
Rae1 {[%clk 0:01:54.8]} 18... Bc6 {[%clk 0:01:30.5]} 19. b4 {[%clk 0:01:29.1]}
19... Qg5 {[%clk 0:01:18.4]} 20. Qf2 {[%clk 0:01:20.9]} 20... Rxe3 {[%clk
0:00:59.3]} 21. Qxe3 {[%clk 0:01:15.7]} 21... Qxe3+ {[%clk 0:00:57.4]} 22. Rxe3
{[%clk 0:01:16.6]} 22... Re8 {[%clk 0:00:48.7]} 23. Rxe8 {[%clk 0:01:12.7]}
23... Bxe8 {[%clk 0:00:49.6]} 24. Kf2 {[%clk 0:01:06.2]} 24... Ne6 {[%clk
0:00:39]} 25. Ke3 {[%clk 0:01:06.3]} 25... g6 {[%clk 0:00:36.9]} 26. d5 {[%clk
0:01:04.6]} 26... Ng7 {[%clk 0:00:35.7]} 27. Bh4 {[%clk 0:00:50.4]} 27... Kf8
{[%clk 0:00:17]} 28. Bd8 {[%clk 0:00:40.4]} 28... c6 {[%clk 0:00:17.1]} 29. c4
{[%clk 0:00:28.3]} 29... c5 {[%clk 0:00:15.6]} 30. b5 {[%clk 0:00:25.5]} 30...
Bd7 {[%clk 0:00:15.6]} 31. Bc7 {[%clk 0:00:22.6]} 31... Nf5+ {[%clk 0:00:16]}
32. Bxf5 {[%clk 0:00:16.5]} 32... Bxf5 {[%clk 0:00:16.9]} 33. Bxd6+ {[%clk
0:00:16.7]} 33... Ke8 {[%clk 0:00:16.1]} 34. Bb8 {[%clk 0:00:17.4]} 34... Bb1
{[%clk 0:00:14.4]} 35. Bxa7 {[%clk 0:00:15.8]} 35... Bxa2 {[%clk 0:00:15]} 36.
Kd3 {[%clk 0:00:16.4]} 36... Bb1+ {[%clk 0:00:15.2]} 37. Kc3 {[%clk 0:00:15.9]}
37... Kd7 {[%clk 0:00:14.5]} 38. Bxb6 {[%clk 0:00:16.2]} 38... Kd6 {[%clk
0:00:15.4]} 39. Ba7 {[%clk 0:00:12.2]} 39... Bf5 {[%clk 0:00:14.5]} 40. Bb8+
{[%clk 0:00:10.1]} 40... Kd7 {[%clk 0:00:11.8]} 41. Bg3 {[%clk 0:00:07]} 41...
Ke7 {[%clk 0:00:06.2]} 42. b6 {[%clk 0:00:06.1]} 42... Bc8 {[%clk 0:00:06.6]}
43. Bf4 {[%clk 0:00:05.6]} 43... Kd7 {[%clk 0:00:06.6]} 44. Kb3 {[%clk
0:00:05.1]} 44... Ba6 {[%clk 0:00:06.8]} 45. Ka4 {[%clk 0:00:04.6]} 45... Kc8
{[%clk 0:00:04.6]} 46. Ka5 {[%clk 0:00:03.9]} 46... Bxc4 {[%clk 0:00:04.7]} 47.
d6 {[%clk 0:00:04.5]} 47... Be6 {[%clk 0:00:02.8]} 48. Be3 {[%clk 0:00:04.5]}
48... c4 {[%clk 0:00:03.1]} 49. Kb4 {[%clk 0:00:04.9]} 49... Kb7 {[%clk
0:00:03.2]} 50. Bd4 {[%clk 0:00:05.1]} 50... Bd5 {[%clk 0:00:03.4]} 51. Kc5
{[%clk 0:00:05.5]} 51... h5 {[%clk 0:00:03.8]} 52. Kxd5 {[%clk 0:00:05.6]} 1-0

[Event "*** Titled Tuesday Blitz"]
[Site "Chess.com"]
[Date "2021.03.02"]
[Round "1"]
[White "SamuelGhimpu2003"]
[Black "ARTHURMOTIVATOR"]
[Result "1-0"]
[WhiteElo "2649"]
[BlackElo "2338"]
[TimeControl "180+1"]
[EndTime "10:08:00 PST"]
[Termination "SamuelGhimpu2003 won by checkmate"]

1. e4 {[%clk 0:03:00.9]} 1... e5 {[%clk 0:02:58.2]} 2. Nf3 {[%clk 0:02:58.1]}
2... Nc6 {[%clk 0:02:57.8]} 3. Bc4 {[%clk 0:02:57.6]} 3... Nf6 {[%clk 0:02:57]}
4. Ng5 {[%clk 0:02:57.5]} 4... d5 {[%clk 0:02:55.2]} 5. exd5 {[%clk 0:02:58.4]}
5... Na5 {[%clk 0:02:54.8]} 6. Bb5+ {[%clk 0:02:58.2]} 6... c6 {[%clk
0:02:54.8]} 7. dxc6 {[%clk 0:02:59.1]} 7... bxc6 {[%clk 0:02:54.7]} 8. Bd3
{[%clk 0:02:59.1]} 8... Nd5 {[%clk 0:02:44.8]} 9. Nf3 {[%clk 0:02:58.2]} 9...
Nf4 {[%clk 0:02:31.1]} 10. Bf1 {[%clk 0:02:56.7]} 10... Bd6 {[%clk 0:02:25.6]}
11. d3 {[%clk 0:02:35.7]} 11... O-O {[%clk 0:02:22.4]} 12. g3 {[%clk 0:02:30.9]}
12... Ne6 {[%clk 0:01:42.8]} 13. Bg2 {[%clk 0:02:28.8]} 13... f5 {[%clk
0:01:39.1]} 14. O-O {[%clk 0:02:28.3]} 14... Qf6 {[%clk 0:01:36.5]} 15. Nc3
{[%clk 0:02:25.3]} 15... Bd7 {[%clk 0:01:31.7]} 16. Re1 {[%clk 0:02:14.9]} 16...
Rae8 {[%clk 0:01:30.2]} 17. Bd2 {[%clk 0:02:14.1]} 17... Nb7 {[%clk 0:01:27.1]}
18. Rb1 {[%clk 0:02:03.8]} 18... g5 {[%clk 0:01:19.8]} 19. h3 {[%clk 0:01:58.5]}
19... g4 {[%clk 0:01:13.1]} 20. hxg4 {[%clk 0:01:58.6]} 20... Nd4 {[%clk
0:00:58.9]} 21. g5 {[%clk 0:01:49.2]} 21... Nxf3+ {[%clk 0:00:48.9]} 22. Qxf3
{[%clk 0:01:47.6]} 22... Qg6 {[%clk 0:00:43.4]} 23. b4 {[%clk 0:01:37.9]} 23...
Bb8 {[%clk 0:00:32.1]} 24. b5 {[%clk 0:01:07.4]} 24... Nd8 {[%clk 0:00:30.8]}
25. a4 {[%clk 0:00:57.2]} 25... cxb5 {[%clk 0:00:21]} 26. axb5 {[%clk
0:00:58.1]} 26... Nf7 {[%clk 0:00:20.1]} 27. Qe3 {[%clk 0:00:43.7]} 27... Bc7
{[%clk 0:00:17.6]} 28. Nd5 {[%clk 0:00:41.4]} 28... Bd8 {[%clk 0:00:13.6]} 29.
Qxa7 {[%clk 0:00:36.7]} 29... Be6 {[%clk 0:00:13.7]} 30. Nf6+ {[%clk 0:00:35.2]}
30... Bxf6 {[%clk 0:00:13.8]} 31. gxf6 {[%clk 0:00:36.1]} 31... f4 {[%clk
0:00:13.5]} 32. Qb7 {[%clk 0:00:25.2]} 32... Ng5 {[%clk 0:00:12.2]} 33. b6
{[%clk 0:00:15.7]} 33... Qxf6 {[%clk 0:00:11.1]} 34. gxf4 {[%clk 0:00:03.7]}
34... exf4 {[%clk 0:00:11.4]} 35. Bd5 {[%clk 0:00:03.3]} 35... Qg6 {[%clk
0:00:10.6]} 36. Bxe6+ {[%clk 0:00:03.6]} 36... Rxe6 {[%clk 0:00:09.4]} 37. Kf1
{[%clk 0:00:04.5]} 37... Rxe1+ {[%clk 0:00:06.8]} 38. Rxe1 {[%clk 0:00:04.1]}
38... Qh5 {[%clk 0:00:05.7]} 39. Qd5+ {[%clk 0:00:04]} 39... Rf7 {[%clk
0:00:04]} 40. Re8+ {[%clk 0:00:03.4]} 40... Kg7 {[%clk 0:00:03.8]} 41. Bc3+
{[%clk 0:00:04.3]} 41... Kg6 {[%clk 0:00:03.7]} 42. Rg8+ {[%clk 0:00:03.8]}
42... Kh6 {[%clk 0:00:03]} 43. Qd6+ {[%clk 0:00:03.5]} 43... Qg6 {[%clk
0:00:02.1]} 44. Rxg6+ {[%clk 0:00:03.2]} 44... hxg6 {[%clk 0:00:03]} 45. Qc6
{[%clk 0:00:03.5]} 45... Kh5 {[%clk 0:00:03.6]} 46. b7 {[%clk 0:00:03.8]} 46...
Rf5 {[%clk 0:00:04.5]} 47. b8=Q {[%clk 0:00:03]} 47... Rf8 {[%clk 0:00:05.4]}
48. Qxf8 {[%clk 0:00:03]} 48... f3 {[%clk 0:00:04.6]} 49. Qh8+ {[%clk
0:00:03.9]} 49... Kg4 {[%clk 0:00:04.4]} 50. Qd7+ {[%clk 0:00:04.6]} 50... Kf4
{[%clk 0:00:04.7]} 51. Qh4# {[%clk 0:00:05.5]} 1-0

[Event "*** Titled Tuesday Blitz"]
[Site "Chess.com"]
[Date "2021.03.02"]
[Round "1"]
[White "pastouche06"]
[Black "beto-betun"]
[Result "1-0"]
[WhiteElo "2532"]
[BlackElo "2205"]
[TimeControl "180+1"]
[EndTime "10:08:01 PST"]
[Termination "pastouche06 won by resignation"]

1. d4 {[%clk 0:02:59.3]} 1... Nf6 {[%clk 0:02:58.8]} 2. c4 {[%clk 0:02:59.1]}
2... g6 {[%clk 0:02:58.1]} 3. f3 {[%clk 0:02:58.9]} 3... d5 {[%clk 0:02:53.1]}
4. cxd5 {[%clk 0:02:58.2]} 4... c6 {[%clk 0:02:50.7]} 5. e4 {[%clk 0:02:48.1]}
5... cxd5 {[%clk 0:02:48.3]} 6. e5 {[%clk 0:02:47.4]} 6... Nfd7 {[%clk
0:02:42.2]} 7. Nc3 {[%clk 0:02:42.4]} 7... e6 {[%clk 0:02:34.6]} 8. h4 {[%clk
0:02:41.9]} 8... h5 {[%clk 0:02:19.1]} 9. Bd3 {[%clk 0:02:27]} 9... Nc6 {[%clk
0:02:10.9]} 10. Nge2 {[%clk 0:02:26.4]} 10... Be7 {[%clk 0:01:52]} 11. g3 {[%clk
0:02:21]} 11... a6 {[%clk 0:01:49.8]} 12. Be3 {[%clk 0:02:18.2]} 12... Qb6
{[%clk 0:01:34.7]} 13. Qd2 {[%clk 0:02:13.4]} 13... f5 {[%clk 0:01:06.9]} 14.
exf6 {[%clk 0:02:10.4]} 14... Nxf6 {[%clk 0:01:05.2]} 15. Bxg6+ {[%clk
0:02:09.4]} 15... Kd7 {[%clk 0:01:05.8]} 16. Bd3 {[%clk 0:01:50.7]} 16... Rg8
{[%clk 0:00:56.9]} 17. O-O-O {[%clk 0:01:31.4]} 17... Kd8 {[%clk 0:00:43.9]} 18.
Kb1 {[%clk 0:01:26.7]} 18... Bd7 {[%clk 0:00:43.6]} 19. Na4 {[%clk 0:01:15]}
19... Qb4 {[%clk 0:00:39.2]} 20. Nc5 {[%clk 0:01:01.7]} 20... Qxd2 {[%clk
0:00:36]} 21. Rxd2 {[%clk 0:01:02.6]} 21... b6 {[%clk 0:00:35]} 22. Nxd7 {[%clk
0:00:57.9]} 22... Kxd7 {[%clk 0:00:35]} 23. Rc1 {[%clk 0:00:51.4]} 23... b5
{[%clk 0:00:32.5]} 24. Rdc2 {[%clk 0:00:46.8]} 24... Rac8 {[%clk 0:00:32.1]} 25.
Bg5 {[%clk 0:00:45.6]} 25... Na5 {[%clk 0:00:29.6]} 26. Rxc8 {[%clk 0:00:44.4]}
26... Rxc8 {[%clk 0:00:30.5]} 27. Rxc8 {[%clk 0:00:44.5]} 27... Kxc8 {[%clk
0:00:31.4]} 28. b3 {[%clk 0:00:42.5]} 28... Nc6 {[%clk 0:00:30.3]} 29. Bg6
{[%clk 0:00:40.9]} 29... Kd7 {[%clk 0:00:26.5]} 30. Bf7 {[%clk 0:00:37.8]} 30...
Nd8 {[%clk 0:00:25.4]} 31. Bg6 {[%clk 0:00:35.5]} 31... Nc6 {[%clk 0:00:24.7]}
32. Bf4 {[%clk 0:00:29.5]} 32... Bd6 {[%clk 0:00:19]} 33. Bxd6 {[%clk
0:00:21.5]} 33... Kxd6 {[%clk 0:00:19.9]} 34. a3 {[%clk 0:00:22]} 34... Ke7
{[%clk 0:00:16.9]} 35. Kc2 {[%clk 0:00:21]} 35... Kf8 {[%clk 0:00:17.4]} 36. Kd3
{[%clk 0:00:20.6]} 36... Kg7 {[%clk 0:00:18.3]} 37. Nf4 {[%clk 0:00:19.6]} 37...
Ne7 {[%clk 0:00:15]} 38. Bxh5 {[%clk 0:00:18.7]} 38... Nxh5 {[%clk 0:00:13.9]}
39. Nxh5+ {[%clk 0:00:19.6]} 39... Kg6 {[%clk 0:00:14.3]} 40. Nf4+ {[%clk
0:00:19.4]} 40... Kf5 {[%clk 0:00:14.9]} 41. Ke3 {[%clk 0:00:19.5]} 41... e5
{[%clk 0:00:13.1]} 42. g4+ {[%clk 0:00:19]} 42... Kf6 {[%clk 0:00:12.8]} 43.
dxe5+ {[%clk 0:00:18.2]} 43... Kxe5 {[%clk 0:00:13.7]} 44. Nd3+ {[%clk
0:00:18.5]} 44... Kf6 {[%clk 0:00:13.6]} 45. Kd4 {[%clk 0:00:16.5]} 45... Ke6
{[%clk 0:00:08.9]} 46. Nc5+ {[%clk 0:00:16.4]} 46... Kd6 {[%clk 0:00:08.4]} 47.
Nxa6 {[%clk 0:00:14.7]} 47... Nc6+ {[%clk 0:00:08.4]} 48. Kd3 {[%clk 0:00:13.7]}
48... Ne5+ {[%clk 0:00:07.6]} 49. Ke3 {[%clk 0:00:14.1]} 49... d4+ {[%clk
0:00:06.7]} 50. Kxd4 {[%clk 0:00:13.6]} 50... Nxf3+ {[%clk 0:00:07.2]} 51. Ke4
{[%clk 0:00:13]} 51... Nxh4 {[%clk 0:00:07.7]} 52. g5 {[%clk 0:00:13.3]} 52...
Ng6 {[%clk 0:00:07.1]} 53. Kf5 {[%clk 0:00:13.1]} 53... Ne5 {[%clk 0:00:06.7]}
54. g6 {[%clk 0:00:12.7]} 54... b4 {[%clk 0:00:06.5]} 55. Nxb4 {[%clk
0:00:10.9]} 55... Nxg6 {[%clk 0:00:04.2]} 56. Kxg6 {[%clk 0:00:11.8]} 56... Kc5
{[%clk 0:00:04.9]} 57. Kf5 {[%clk 0:00:11.4]} 1-0

[Event "*** Titled Tuesday Blitz"]
[Site "Chess.com"]
[Date "2021.03.02"]
[Round "1"]
[White "serhanberat_ozdemir"]
[Black "XxPetroffsxX"]
[Result "1-0"]
[WhiteElo "2516"]
[BlackElo "2149"]
[TimeControl "180+1"]
[EndTime "10:08:01 PST"]
[Termination "serhanberat_ozdemir won on time"]

1. e4 {[%clk 0:03:00.4]} 1... e5 {[%clk 0:02:59.6]} 2. Nf3 {[%clk 0:03:00.8]}
2... Nc6 {[%clk 0:02:58.4]} 3. d4 {[%clk 0:03:01.2]} 3... exd4 {[%clk
0:02:57.7]} 4. Bc4 {[%clk 0:03:01.7]} 4... Bc5 {[%clk 0:02:55.5]} 5. c3 {[%clk
0:03:01.2]} 5... d3 {[%clk 0:02:55.7]} 6. Qxd3 {[%clk 0:02:45.7]} 6... d6 {[%clk
0:02:52.7]} 7. O-O {[%clk 0:02:44]} 7... Nf6 {[%clk 0:02:50.8]} 8. Bg5 {[%clk
0:02:41.1]} 8... h6 {[%clk 0:02:48.3]} 9. Bh4 {[%clk 0:02:40.6]} 9... O-O {[%clk
0:02:43.9]} 10. Nbd2 {[%clk 0:02:39.7]} 10... Bg4 {[%clk 0:02:39.1]} 11. a4
{[%clk 0:02:28.2]} 11... a5 {[%clk 0:02:22.6]} 12. Rfe1 {[%clk 0:02:15.9]} 12...
Re8 {[%clk 0:02:21.3]} 13. Bb3 {[%clk 0:02:12.6]} 13... Qe7 {[%clk 0:02:06]} 14.
Nf1 {[%clk 0:01:48.5]} 14... Ne5 {[%clk 0:01:58.2]} 15. Nxe5 {[%clk 0:01:47.9]}
15... dxe5 {[%clk 0:01:57.9]} 16. Ne3 {[%clk 0:01:44.7]} 16... Be6 {[%clk
0:01:40.5]} 17. Bxe6 {[%clk 0:01:30.2]} 17... Qxe6 {[%clk 0:01:37.2]} 18. Nf5
{[%clk 0:01:30]} 18... Rad8 {[%clk 0:01:28.5]} 19. Qg3 {[%clk 0:01:27.4]} 19...
Bf8 {[%clk 0:01:02.2]} 20. Nxh6+ {[%clk 0:01:27.2]} 20... Kh7 {[%clk 0:01:01.8]}
21. Nf5 {[%clk 0:01:25.2]} 21... Nh5 {[%clk 0:00:55.8]} 22. Qg4 {[%clk
0:01:19.1]} 22... Nf6 {[%clk 0:00:53.5]} 23. Qh3 {[%clk 0:01:17.8]} 23... Kg8
{[%clk 0:00:50.8]} 24. Rad1 {[%clk 0:01:18.3]} 24... Rxd1 {[%clk 0:00:48.6]} 25.
Rxd1 {[%clk 0:01:15.7]} 25... Nxe4 {[%clk 0:00:47.5]} 26. Re1 {[%clk 0:01:12.1]}
26... Nd6 {[%clk 0:00:42.6]} 27. Ne3 {[%clk 0:00:50.8]} 27... Qxh3 {[%clk
0:00:41.3]} 28. gxh3 {[%clk 0:00:51.7]} 28... f5 {[%clk 0:00:37.6]} 29. Nd5
{[%clk 0:00:44.1]} 29... c6 {[%clk 0:00:36.9]} 30. Nb6 {[%clk 0:00:41.7]} 30...
Ne4 {[%clk 0:00:32.3]} 31. Bg3 {[%clk 0:00:37.5]} 31... f4 {[%clk 0:00:30.5]}
32. Rxe4 {[%clk 0:00:36.2]} 32... fxg3 {[%clk 0:00:29.5]} 33. hxg3 {[%clk
0:00:37.1]} 33... Bc5 {[%clk 0:00:22.7]} 34. Nc4 {[%clk 0:00:37.7]} 34... Rf8
{[%clk 0:00:22.5]} 35. Re2 {[%clk 0:00:33.6]} 35... e4 {[%clk 0:00:20.7]} 36.
Kg2 {[%clk 0:00:34.1]} 36... b5 {[%clk 0:00:20.6]} 37. axb5 {[%clk 0:00:33.1]}
37... cxb5 {[%clk 0:00:20.3]} 38. Nd2 {[%clk 0:00:32.6]} 38... a4 {[%clk
0:00:13.3]} 39. Nxe4 {[%clk 0:00:32]} 39... Be7 {[%clk 0:00:12.9]} 40. f4 {[%clk
0:00:31.7]} 40... b4 {[%clk 0:00:11]} 41. cxb4 {[%clk 0:00:31.4]} 41... Bxb4
{[%clk 0:00:11.9]} 42. Kf3 {[%clk 0:00:32.3]} 42... Rc8 {[%clk 0:00:11.4]} 43.
g4 {[%clk 0:00:32.3]} 43... Rc1 {[%clk 0:00:09.7]} 44. f5 {[%clk 0:00:26.6]}
44... Rh1 {[%clk 0:00:08.8]} 45. Kg2 {[%clk 0:00:26]} 45... Rb1 {[%clk
0:00:08.1]} 46. Ng5 {[%clk 0:00:23.5]} 46... Kf8 {[%clk 0:00:06.9]} 47. Ne6+
{[%clk 0:00:23.3]} 47... Kf7 {[%clk 0:00:06.3]} 48. h4 {[%clk 0:00:24]} 48...
Be7 {[%clk 0:00:02]} 49. g5 {[%clk 0:00:23.4]} 49... Bd6 {[%clk 0:00:01.6]} 50.
Nd8+ {[%clk 0:00:20.4]} 1-0

[Event "*** Titled Tuesday Blitz"]
[Site "Chess.com"]
[Date "2021.03.02"]
[Round "1"]
[White "PakMaster"]
[Black "Chowman64"]
[Result "0-1"]
[WhiteElo "2242"]
[BlackElo "2620"]
[TimeControl "180+1"]
[EndTime "10:08:02 PST"]
[Termination "Chowman64 won on time"]

1. d4 {[%clk 0:02:58.1]} 1... Nf6 {[%clk 0:02:59]} 2. c4 {[%clk 0:02:57.7]} 2...
b6 {[%clk 0:02:58.4]} 3. Nc3 {[%clk 0:02:56.7]} 3... Bb7 {[%clk 0:02:58.2]} 4.
Nf3 {[%clk 0:02:57.1]} 4... e6 {[%clk 0:02:57.2]} 5. g3 {[%clk 0:02:56.6]} 5...
Bb4 {[%clk 0:02:54.5]} 6. Bg2 {[%clk 0:02:56.9]} 6... Bxc3+ {[%clk 0:02:52.5]}
7. bxc3 {[%clk 0:02:55.3]} 7... O-O {[%clk 0:02:53]} 8. O-O {[%clk 0:02:53.7]}
8... d6 {[%clk 0:02:52.8]} 9. Bg5 {[%clk 0:02:45.5]} 9... h6 {[%clk 0:02:46.1]}
10. Bxf6 {[%clk 0:02:43.7]} 10... Qxf6 {[%clk 0:02:46.7]} 11. Qc2 {[%clk
0:02:43.2]} 11... Nc6 {[%clk 0:02:40.7]} 12. e4 {[%clk 0:02:39.2]} 12... e5
{[%clk 0:02:37.4]} 13. d5 {[%clk 0:02:38.7]} 13... Na5 {[%clk 0:02:35.6]} 14.
Nd2 {[%clk 0:02:39]} 14... Ba6 {[%clk 0:02:29.2]} 15. Qa4 {[%clk 0:02:36.3]}
15... Rfe8 {[%clk 0:01:53.3]} 16. Rfe1 {[%clk 0:02:34.4]} 16... Qe7 {[%clk
0:01:50.1]} 17. Bf1 {[%clk 0:02:24.3]} 17... Bc8 {[%clk 0:01:41.1]} 18. Nb3
{[%clk 0:02:15.6]} 18... Bd7 {[%clk 0:01:40.8]} 19. Qa3 {[%clk 0:02:11.6]} 19...
Nb7 {[%clk 0:01:40.5]} 20. Qc1 {[%clk 0:02:06.9]} 20... f5 {[%clk 0:01:36.5]}
21. exf5 {[%clk 0:02:03]} 21... Bxf5 {[%clk 0:01:37.4]} 22. Nd4 {[%clk
0:01:50.2]} 22... Bd7 {[%clk 0:01:34.5]} 23. Bg2 {[%clk 0:01:40.8]} 23... Nc5
{[%clk 0:01:32.9]} 24. Nb3 {[%clk 0:01:16]} 24... Nd3 {[%clk 0:01:31.3]} 25. Qd2
{[%clk 0:01:11]} 25... Nxe1 {[%clk 0:01:31.2]} 26. Rxe1 {[%clk 0:01:11.5]} 26...
Qf6 {[%clk 0:01:29.2]} 27. Qe3 {[%clk 0:01:04.5]} 27... a5 {[%clk 0:01:27.5]}
28. Nd2 {[%clk 0:01:04.7]} 28... Qg5 {[%clk 0:01:19.6]} 29. Qxg5 {[%clk
0:00:46.5]} 29... hxg5 {[%clk 0:01:19.4]} 30. Ne4 {[%clk 0:00:46.9]} 30... g4
{[%clk 0:01:19.2]} 31. Bf1 {[%clk 0:00:39]} 31... Rab8 {[%clk 0:01:17.2]} 32.
Be2 {[%clk 0:00:28.7]} 32... Rf8 {[%clk 0:01:13.9]} 33. Kg2 {[%clk 0:00:24.4]}
33... Bf5 {[%clk 0:01:09.2]} 34. Ng5 {[%clk 0:00:22.8]} 34... g6 {[%clk
0:01:03.1]} 35. f3 {[%clk 0:00:18.7]} 35... gxf3+ {[%clk 0:01:01.6]} 36. Bxf3
{[%clk 0:00:19.6]} 36... b5 {[%clk 0:00:59.1]} 37. g4 {[%clk 0:00:18.6]} 37...
Bd7 {[%clk 0:00:56.2]} 38. cxb5 {[%clk 0:00:19.5]} 38... Rxb5 {[%clk 0:00:55.4]}
39. Be4 {[%clk 0:00:19]} 39... Rb2+ {[%clk 0:00:46.8]} 40. Kg3 {[%clk
0:00:18.3]} 40... Kg7 {[%clk 0:00:44.1]} 41. h4 {[%clk 0:00:17.5]} 41... Rf4
{[%clk 0:00:40.2]} 42. Ne6+ {[%clk 0:00:14.5]} 42... Bxe6 {[%clk 0:00:38]} 43.
dxe6 {[%clk 0:00:15.4]} 43... Kf6 {[%clk 0:00:28.2]} 44. e7 {[%clk 0:00:15.5]}
44... Kxe7 {[%clk 0:00:25.1]} 45. Bxg6 {[%clk 0:00:15.8]} 45... Rxa2 {[%clk
0:00:24.9]} 46. h5 {[%clk 0:00:14.9]} 46... Kf6 {[%clk 0:00:24.3]} 47. Be4
{[%clk 0:00:13.2]} 47... Kg5 {[%clk 0:00:23.9]} 48. Bf5 {[%clk 0:00:11.2]} 48...
Ra3 {[%clk 0:00:23.6]} 49. Re3 {[%clk 0:00:09.4]} 49... Rb3 {[%clk 0:00:23.3]}
50. Be6 {[%clk 0:00:02.8]} 50... Rb1 {[%clk 0:00:21.6]} 51. Kg2 {[%clk
0:00:01.8]} 51... Rb2+ {[%clk 0:00:19.8]} 0-1

[Event "*** Titled Tuesday Blitz"]
[Site "Chess.com"]
[Date "2021.03.02"]
[Round "1"]
[White "tdf98pantani"]
[Black "Coiote53"]
[Result "0-1"]
[WhiteElo "2658"]
[BlackElo "2367"]
[TimeControl "180+1"]
[EndTime "10:08:04 PST"]
[Termination "Coiote53 won on time"]

1. d4 {[%clk 0:02:59.9]} 1... Nf6 {[%clk 0:02:59.9]} 2. c4 {[%clk 0:03:00]} 2...
g6 {[%clk 0:02:57.1]} 3. Nc3 {[%clk 0:02:59.4]} 3... d5 {[%clk 0:02:54.9]} 4.
Nf3 {[%clk 0:02:55.7]} 4... Bg7 {[%clk 0:02:53.5]} 5. e3 {[%clk 0:02:55.9]} 5...
O-O {[%clk 0:02:51.8]} 6. b4 {[%clk 0:02:56.1]} 6... c6 {[%clk 0:02:36.4]} 7.
Ba3 {[%clk 0:02:51.4]} 7... a5 {[%clk 0:02:33.5]} 8. b5 {[%clk 0:02:51.2]} 8...
a4 {[%clk 0:02:22.5]} 9. Bd3 {[%clk 0:02:39.2]} 9... dxc4 {[%clk 0:02:21.8]} 10.
Bxc4 {[%clk 0:02:39.3]} 10... cxb5 {[%clk 0:02:22.7]} 11. Nxb5 {[%clk
0:02:31.7]} 11... Nc6 {[%clk 0:02:10.2]} 12. O-O {[%clk 0:02:30.3]} 12... Bg4
{[%clk 0:02:02.5]} 13. Rc1 {[%clk 0:02:20.8]} 13... Qa5 {[%clk 0:01:40.9]} 14.
h3 {[%clk 0:02:15.3]} 14... Bf5 {[%clk 0:01:33.2]} 15. Qe2 {[%clk 0:02:12.4]}
15... Rac8 {[%clk 0:01:28.5]} 16. Ne5 {[%clk 0:02:03]} 16... Nxe5 {[%clk
0:01:24.9]} 17. dxe5 {[%clk 0:02:03.2]} 17... Ne4 {[%clk 0:01:19.4]} 18. Bxe7
{[%clk 0:02:02.1]} 18... Rfe8 {[%clk 0:01:17.6]} 19. Nd6 {[%clk 0:01:35.2]}
19... Nxd6 {[%clk 0:01:16.7]} 20. exd6 {[%clk 0:01:33]} 20... Bf8 {[%clk
0:01:13.8]} 21. Bxf8 {[%clk 0:01:23.5]} 21... Rxf8 {[%clk 0:01:14.7]} 22. Qf3
{[%clk 0:01:18.2]} 22... b5 {[%clk 0:01:07.2]} 23. Bd5 {[%clk 0:01:10]} 23...
Rc3 {[%clk 0:00:44.9]} 24. Rxc3 {[%clk 0:01:06.7]} 24... Qxc3 {[%clk 0:00:45.8]}
25. e4 {[%clk 0:01:05.2]} 25... Qxf3 {[%clk 0:00:39.2]} 26. gxf3 {[%clk
0:01:06.1]} 26... Bxh3 {[%clk 0:00:40.1]} 27. Rc1 {[%clk 0:01:05.1]} 27... Rd8
{[%clk 0:00:33.7]} 28. e5 {[%clk 0:01:04.9]} 28... Kf8 {[%clk 0:00:34.1]} 29.
Rc7 {[%clk 0:01:00.3]} 29... Bd7 {[%clk 0:00:34.2]} 30. a3 {[%clk 0:00:52.8]}
30... g5 {[%clk 0:00:29.6]} 31. Kg2 {[%clk 0:00:50.9]} 31... h6 {[%clk
0:00:28.2]} 32. f4 {[%clk 0:00:51.2]} 32... gxf4 {[%clk 0:00:25.9]} 33. Kf3
{[%clk 0:00:51.4]} 33... h5 {[%clk 0:00:25.9]} 34. Kxf4 {[%clk 0:00:51.6]} 34...
h4 {[%clk 0:00:25.6]} 35. Kg5 {[%clk 0:00:46.4]} 35... h3 {[%clk 0:00:24.9]} 36.
Kf6 {[%clk 0:00:40.8]} 36... b4 {[%clk 0:00:22.6]} 37. axb4 {[%clk 0:00:40.1]}
37... h2 {[%clk 0:00:22.5]} 38. f4 {[%clk 0:00:37.6]} 38... Be6 {[%clk
0:00:20.8]} 39. Be4 {[%clk 0:00:36.5]} 39... a3 {[%clk 0:00:18.8]} 40. f5 {[%clk
0:00:32.9]} 40... Bd7 {[%clk 0:00:18.8]} 41. e6 {[%clk 0:00:32.2]} 41... fxe6
{[%clk 0:00:19.3]} 42. fxe6 {[%clk 0:00:32.6]} 42... Bxe6 {[%clk 0:00:19.7]} 43.
Kxe6 {[%clk 0:00:29.4]} 43... a2 {[%clk 0:00:19.8]} 44. Ra7 {[%clk 0:00:28.8]}
44... Re8+ {[%clk 0:00:17.9]} 45. Kf6 {[%clk 0:00:24.5]} 45... Rxe4 {[%clk
0:00:18.3]} 46. d7 {[%clk 0:00:21.7]} 46... Rf4+ {[%clk 0:00:12.6]} 47. Ke6
{[%clk 0:00:21.9]} 47... Re4+ {[%clk 0:00:11.8]} 48. Kf6 {[%clk 0:00:19.7]}
48... Rf4+ {[%clk 0:00:12.2]} 49. Ke6 {[%clk 0:00:14.8]} 49... Rd4 {[%clk
0:00:12.3]} 50. Kf6 {[%clk 0:00:06.8]} 50... h1=Q {[%clk 0:00:07.7]} 0-1